bitfinex/quotes_BTCUSD_20251219
["timestamp","ask_amount","ask_price","bid_price","bid_amount"]
[1766186338561,0.13551,88390.0,88373.0,0.18022]
[1766186338806,0.13551,88390.0,88374.0,0.01131554]
[1766186338807,0.01131605,88381.0,88374.0,0.01131554]
[1766186339002,0.01699605,88381.0,88373.0,0.19153567]
[1766186339204,0.01699605,88381.0,88374.0,0.01131554]
[1766186339414,0.01699605,88381.0,88375.0,0.01131541]
[1766186339785,0.01699605,88381.0,88374.0,0.19153554]
[1766186341002,0.01699605,88381.0,88374.0,0.17932217]
[1766186341208,0.01699605,88381.0,88374.0,0.19063771]
[1766186341439,0.00055,88374.0,88372.0,0.00568]
[1766186341849,0.13551,88376.0,88372.0,0.00568]
[1766186342875,0.13551,88377.0,88364.0,0.01131682]
[1766186343015,0.00568,88376.0,88365.0,0.01131669]
[1766186343419,0.14119,88376.0,88366.0,0.01131656]
[1766186344215,0.14119,88376.0,88367.0,0.01131644]
[1766186344880,0.14119,88376.0,88366.0,0.01131656]
[1766186345713,0.14119,88376.0,88367.0,0.01131644]
[1766186346669,0.14119,88376.0,88368.0,0.01131631]
[1766186348121,0.14119,88376.0,88369.0,0.01131618]
[1766186348524,0.14119,88376.0,88370.0,0.01131605]
[1766186350115,0.14119,88376.0,88369.0,0.01131618]
[1766186350313,0.14119,88376.0,88366.0,0.95411016]
[1766186350540,0.14119,88376.0,88370.0,0.01131605]
[1766186350952,0.14119,88376.0,88369.0,0.01131618]
[1766186352070,0.14119,88376.0,88370.0,0.01131605]
[1766186352380,0.00568,88376.0,88370.0,0.01131605]
[1766186352511,0.00568,88377.0,88372.0,0.1869558]
[1766186352715,0.01131605,88381.0,88372.0,0.1869558]
[1766186352963,0.00568,88380.0,88372.0,0.1869558]
[1766186353878,0.00568,88379.0,88372.0,0.1869558]
[1766186354084,0.01131605,88381.0,88371.0,0.01131592]
[1766186354085,0.01131605,88381.0,88376.0,0.01131528]
[1766186354304,0.16208,88388.0,88379.0,0.000549]
[1766186354489,0.00568,88386.0,88380.0,0.17564]
[1766186355289,0.00568,88386.0,88377.0,0.01131516]
[1766186355433,0.13852,88386.0,88378.0,0.01131503]
[1766186356068,0.13852,88386.0,88377.0,0.01131516]
[1766186356294,0.13852,88386.0,88377.0,0.02263044]
[1766186357621,0.13852,88386.0,88378.0,0.01131503]
[1766186357989,0.13852,88386.0,88377.0,0.02263044]
[1766186358572,0.13852,88386.0,88378.0,0.01131503]
[1766186358704,0.13852,88386.0,88379.0,0.0113149]
[1766186358904,0.13852,88386.0,88378.0,0.01131503]
[1766186359766,0.13284,88386.0,88378.0,0.01131503]
[1766186359964,0.00568,88385.0,88378.0,0.01131503]
[1766186360515,0.00568,88385.0,88377.0,0.02263044]
[1766186360731,0.00568,88385.0,88377.0,0.01131528]
[1766186362203,0.00568,88385.0,88377.0,0.02263044]
[1766186362410,0.00568,88385.0,88379.0,0.0113149]
[1766186362782,0.00568,88385.0,88378.0,0.17638503]
[1766186363368,0.00568,88385.0,88378.0,0.16507]
[1766186363573,0.00568,88385.0,88378.0,0.17638503]
[1766186363843,0.00568,88385.0,88378.0,0.16507]
[1766186364040,0.00568,88387.0,88378.0,0.16507]
[1766186365598,0.13372,88388.0,88378.0,0.16507]
[1766186365754,0.00568,88387.0,88378.0,0.16507]
[1766186366148,0.13372,88388.0,88378.0,0.16507]
[1766186366347,0.00568,88387.0,88378.0,0.16507]
[1766186367194,0.1394,88387.0,88378.0,0.16507]
[1766186367393,0.1394,88387.0,88378.0,0.17638503]
[1766186367916,0.1394,88387.0,88378.0,0.16507]
[1766186368393,0.1394,88387.0,88378.0,0.17638503]
[1766186368796,0.1394,88387.0,88378.0,0.16507]
[1766186369296,0.13372,88387.0,88378.0,0.16507]
[1766186369476,0.00568,88386.0,88378.0,0.16507]
[1766186369674,0.13372,88387.0,88378.0,0.17638503]
[1766186369883,0.00568,88386.0,88378.0,0.16507]
[1766186370245,0.00568,88386.0,88378.0,0.17638503]
[1766186370466,0.00568,88386.0,88379.0,0.0113149]
[1766186370684,0.16208,88389.0,88380.0,0.01131477]
[1766186370889,0.16208,88389.0,88379.0,0.0113149]
[1766186370890,0.00568,88387.0,88379.0,0.0113149]
[1766186371547,0.01131528,88392.0,88380.0,0.01131477]
[1766186371760,0.00568,88398.0,88392.0,0.000549]
[1766186372206,0.00568,88398.0,88389.0,0.16507]
[1766186372930,0.00568,88398.0,88390.0,0.03399262]
[1766186373794,0.0135805,88406.0,88393.0,0.16507]
[1766186374002,0.00568,88402.0,88396.0,0.88620646]
[1766186374225,0.00568,88402.0,88393.0,0.16507]
[1766186374843,0.00568,88402.0,88394.0,0.03399042]
[1766186382898,0.00568,88402.0,88394.0,0.0453034]
[1766186383127,0.00568,88402.0,88394.0,0.03399042]
[1766186383347,0.00568,88402.0,88393.0,0.17638311]
[1766186383835,0.00568,88402.0,88393.0,0.16507]
[1766186384063,0.00568,88402.0,88394.0,0.03399042]
[1766186384227,0.12696,88402.0,88394.0,0.03399042]
[1766186391654,0.29955,88402.0,88394.0,0.03399042]
[1766186392128,0.12128,88401.0,88394.0,0.03399042]
[1766186392895,0.17827,88402.0,88394.0,0.03399042]
[1766186396688,0.29955,88402.0,88394.0,0.03399042]
[1766186396894,0.12128,88401.0,88394.0,0.03399042]
[1766186397242,0.17259,88401.0,88394.0,0.03344042]
[1766186397445,0.12128,88398.0,88394.0,0.03344042]
[1766186405386,0.15548,88395.0,88380.0,0.88620646]
[1766186405646,0.11997,88390.0,88381.0,0.00568]
[1766186405790,0.11997,88389.0,88381.0,0.00568]
[1766186406001,0.11997,88389.0,88381.0,0.01699464]
[1766186406406,0.119421,88389.0,88382.0,0.01131452]
[1766186406622,0.119421,88389.0,88381.0,0.01699464]
[1766186406826,0.119421,88389.0,88382.0,0.01131452]
[1766186407288,0.15548,88390.0,88383.0,0.01131439]
[1766186409186,0.15548,88390.0,88384.0,0.01131426]
[1766186409385,0.15548,88390.0,88383.0,0.01131439]
[1766186413409,0.15548,88390.0,88384.0,0.01131426]
[1766186413663,0.15548,88390.0,88383.0,0.01131439]
[1766186414037,0.15548,88390.0,88382.0,0.01131452]
[1766186414241,0.15548,88390.0,88381.0,0.01699464]
[1766186414563,0.15548,88390.0,88383.0,0.01131439]
[1766186414769,0.15548,88390.0,88381.0,0.01699464]
[1766186415331,0.15548,88390.0,88383.0,0.01131439]
[1766186415930,0.15548,88390.0,88381.0,0.01699464]
[1766186416140,0.27545,88389.0,88381.0,0.00568]
[1766186416496,0.11997,88388.0,88381.0,0.01699464]
[1766186416839,0.11997,88388.0,88382.0,0.01131452]
[1766186417062,0.11997,88388.0,88383.0,0.01131439]
[1766186417315,0.11997,88388.0,88382.0,0.01131452]
[1766186417528,0.11997,88388.0,88383.0,0.01131439]
[1766186418303,0.11997,88388.0,88382.0,0.01131452]
[1766186418526,0.11997,88388.0,88384.0,0.01131426]
[1766186418746,0.11997,88388.0,88385.0,0.01131413]
[1766186418865,0.15548,88398.0,88387.0,0.01131388]
[1766186419241,0.00568,88397.0,88388.0,0.88613094]
[1766186419426,0.17417,88397.0,88388.0,0.88613094]
[1766186420419,0.17417,88397.0,88388.0,0.89744469]
[1766186420721,0.16849,88397.0,88388.0,0.89744469]
[1766186420923,0.12776,88396.0,88388.0,0.88613094]
[1766186421545,0.12776,88396.0,88385.0,0.01131413]
[1766186421752,0.17417,88396.0,88386.0,0.011314]
[1766186422100,0.000549,88386.0,88383.0,0.01131439]
[1766186422488,0.000549,88386.0,88377.0,0.01131516]
[1766186422489,0.12208,88381.0,88376.0,3.96e-06]
[1766186422691,0.12208,88381.0,88370.0,0.00568]
[1766186423073,0.12208,88381.0,88371.0,0.01131592]
[1766186423269,0.01131631,88380.0,88371.0,0.01131592]
[1766186423471,0.01131631,88380.0,88372.0,0.0113158]
[1766186424074,0.01131631,88380.0,88371.0,0.01131592]
[1766186424275,0.01131631,88380.0,88372.0,0.0113158]
[1766186426508,0.01131631,88380.0,88373.0,0.01131567]
[1766186426706,0.01131631,88380.0,88371.0,0.01131592]
[1766186426917,0.01131631,88380.0,88372.0,0.0113158]
[1766186427649,0.01131631,88380.0,88374.0,0.01131554]
[1766186428858,0.01131631,88380.0,88375.0,0.01131541]
[1766186429273,0.01131631,88380.0,88376.0,0.01131528]
[1766186429808,0.00568,88384.0,88377.0,0.01131516]
[1766186430010,0.00568,88384.0,88379.0,0.0113149]
[1766186430213,0.01131208,88401.0,88375.0,0.05657702]
[1766186430214,0.04932002,88406.0,88381.0,0.01131464]
[1766186430375,2.6e-06,88388.0,88386.0,0.16659]
[1766186430557,0.00568,88392.0,88386.0,0.177904]
[1766186431071,0.00568,88392.0,88386.0,0.16659]
[1766186431283,0.15607527,88396.0,88386.0,0.16659]
[1766186431600,0.00568,88395.0,88386.0,0.16659]
[1766186432549,0.00568,88395.0,88386.0,0.177904]
[1766186433676,0.00568,88395.0,88387.0,0.01131388]
[1766186434154,0.00568,88395.0,88386.0,0.177904]
[1766186434397,0.00568,88395.0,88387.0,0.01131388]
[1766186434781,0.00568,88395.0,88386.0,0.177904]
[1766186434951,0.00568,88395.0,88387.0,0.01131388]
[1766186435134,0.00568,88395.0,88386.0,0.177904]
[1766186435471,0.00568,88395.0,88387.0,0.01131388]
[1766186435689,0.00568,88395.0,88386.0,0.177904]
[1766186437430,0.00568,88395.0,88386.0,0.16659]
[1766186437868,0.00568,88395.0,88386.0,0.177904]
[1766186438195,0.00568,88394.0,88386.0,0.177904]
[1766186438398,0.00568,88394.0,88386.0,0.16659]
[1766186438806,0.00568,88394.0,88386.0,0.177904]
[1766186439692,0.00568,88394.0,88388.0,0.01131375]
[1766186439909,0.00568,88394.0,88389.0,0.01131362]
[1766186440286,0.00568,88394.0,88387.0,0.01131388]
[1766186440493,0.00568,88394.0,88386.0,0.177904]
[1766186441094,0.00568,88394.0,88387.0,0.01131388]
[1766186441414,0.00568,88394.0,88386.0,0.177904]
[1766186441415,0.00568,88394.0,88386.0,0.16659]
[1766186442213,0.00568,88394.0,88387.0,0.01131388]
[1766186443939,0.00568,88394.0,88386.0,0.16659]
[1766186444548,0.00568,88394.0,88386.0,0.177904]
[1766186445315,0.00568,88394.0,88386.0,0.16659]
[1766186445491,0.00568,88394.0,88386.0,0.177904]
[1766186446029,0.14601,88395.0,88386.0,0.177904]
[1766186446406,0.1244,88395.0,88386.0,0.177904]
[1766186447330,0.1244,88395.0,88387.0,0.01131388]
[1766186449938,0.1244,88395.0,88386.0,0.177904]
[1766186450705,0.1244,88395.0,88387.0,0.01131388]
[1766186451327,0.1244,88395.0,88389.0,0.01131362]
[1766186451682,0.1244,88395.0,88388.0,0.01131375]
[1766186451886,0.13571388,88395.0,88388.0,0.01131375]
[1766186452563,0.01131388,88395.0,88389.0,0.01131362]
[1766186452771,0.01131388,88395.0,88390.0,0.01131349]
[1766186452971,0.01131388,88395.0,88391.0,0.01131336]
[1766186453340,0.12872,88406.0,88396.0,0.01131272]
[1766186453556,0.01131362,88401.0,88396.0,0.13894272]
[1766186453724,0.00568,88406.0,88396.0,0.13894272]
[1766186454267,0.02483919,88405.0,88396.0,0.13894272]
[1766186454472,0.02483919,88405.0,88396.0,0.12763]
[1766186454998,0.02483919,88405.0,88396.0,0.13894272]
[1766186455599,0.02483919,88405.0,88397.0,0.0113126]
[1766186456099,0.02483919,88405.0,88396.0,0.13894272]
[1766186456682,0.02483919,88405.0,88396.0,0.12763]
[1766186457413,0.02483919,88405.0,88395.0,0.01131285]
[1766186458796,0.02483919,88405.0,88396.0,0.01131272]
[1766186459037,0.02483919,88405.0,88395.0,0.01131285]
[1766186460474,0.02483919,88405.0,88396.0,0.01131272]
[1766186460632,0.02483919,88405.0,88395.0,0.01131285]
[1766186461286,0.02483919,88405.0,88396.0,0.01131272]
[1766186461630,0.00568,88406.0,88402.0,0.01131196]
[1766186461837,0.00568,88406.0,88401.0,0.16648]
[1766186463021,0.00568,88406.0,88401.0,0.165931]
[1766186466078,0.00568,88406.0,88401.0,0.17724308]
[1766186466670,0.00568,88407.0,88401.0,0.165931]
[1766186467268,0.00568,88407.0,88401.0,0.165474]
[1766186477399,0.00568,88407.0,88401.0,0.17678608]
[1766186477845,0.00568,88407.0,88401.0,0.165474]
[1766186480727,0.00568,88407.0,88401.0,0.17678608]
[1766186481151,0.00568,88407.0,88401.0,0.165474]
[1766186484553,0.00568,88407.0,88399.0,0.01131234]
[1766186484554,0.06179,88416.0,88407.0,0.000549]
[1766186484756,0.04182077,88426.0,88402.0,0.00568]
[1766186484757,0.06561,88412.0,88402.0,0.00568]
[1766186484962,0.00055,88402.0,88401.0,0.00568]
[1766186485131,0.00055,88402.0,88400.0,0.88576459]
[1766186485294,0.00055,88402.0,88398.0,0.00568]
[1766186485502,0.12478,88405.0,88398.0,0.01699247]
[1766186485910,0.12478,88405.0,88399.0,0.01131234]
[1766186486129,0.12478,88405.0,88400.0,0.01131221]
[1766186486531,0.12478,88405.0,88399.0,0.01131234]
[1766186487076,0.12478,88405.0,88398.0,0.01699247]
[1766186487299,0.12478,88405.0,88400.0,0.01131221]
[1766186487476,0.12478,88405.0,88399.0,0.01131234]
[1766186487839,0.12478,88405.0,88400.0,0.01131221]
[1766186488181,0.12478,88405.0,88399.0,0.01131234]
[1766186488391,0.12478,88405.0,88400.0,0.01131221]
[1766186488688,0.12478,88405.0,88401.0,0.01131208]
[1766186489109,0.12478,88405.0,88400.0,0.01131221]
[1766186489306,0.000549,88400.0,88398.0,0.01699247]
[1766186489718,0.12478,88405.0,88400.0,0.01131221]
[1766186493581,0.00568,88411.0,88398.0,0.00568]
[1766186493918,0.06091,88409.0,88398.0,0.00568]
[1766186494121,0.06102,88408.0,88398.0,0.00568]
[1766186494357,0.11511,88407.0,88398.0,0.00568]
[1766186496984,0.11511,88407.0,88398.0,0.01699247]
[1766186497393,0.11511,88407.0,88399.0,0.01131234]
[1766186498142,0.11511,88407.0,88400.0,0.01131221]
[1766186498344,0.11511,88407.0,88399.0,0.01131234]
[1766186498623,0.11511,88407.0,88398.0,0.01699247]
[1766186499066,0.11511,88407.0,88399.0,0.01131234]
[1766186500173,0.00568,88411.0,88402.0,0.01131196]
[1766186500416,0.00568,88411.0,88404.0,0.0113117]
[1766186500636,0.00568,88411.0,88407.0,0.01131132]
[1766186500853,0.11511,88423.0,88412.0,0.01131068]
[1766186501061,0.00568,88422.0,88411.0,0.16813]
[1766186501274,0.00568,88421.0,88411.0,0.16813]
[1766186501479,0.12079,88421.0,88411.0,0.16813]
[1766186501686,0.12079,88421.0,88410.0,0.88576459]
[1766186501868,0.11511,88420.0,88410.0,0.88576459]
[1766186503297,0.11511,88420.0,88410.0,0.89707552]
[1766186503882,0.11511,88420.0,88410.0,0.88576459]
[1766186504334,0.11511,88420.0,88410.0,0.89707552]
[1766186505231,0.11511,88420.0,88410.0,0.88576459]
[1766186505440,0.11511,88420.0,88410.0,0.89707552]
[1766186505646,0.11511,88420.0,88410.0,0.88576459]
[1766186506438,0.00024643,88416.0,88410.0,0.89707552]
[1766186506615,0.00024643,88416.0,88410.0,0.01131093]
[1766186506826,0.00024643,88416.0,88409.0,0.01699106]
[1766186507807,0.00024643,88416.0,88409.0,0.00568]
[1766186511453,0.11511,88415.0,88409.0,0.005131]
[1766186512485,0.00024643,88416.0,88409.0,0.005131]
[1766186515912,0.11535643,88416.0,88409.0,0.005131]
[1766186516644,0.11511,88415.0,88409.0,0.005131]
[1766186516991,0.11511,88414.0,88409.0,0.005131]
[1766186517420,0.05795,88409.0,88401.0,0.00568]
[1766186517625,0.11511,88407.0,88401.0,0.00568]
[1766186520170,0.00568,88411.0,88407.0,0.000549]
[1766186520548,0.00568,88412.0,88407.0,0.000549]
[1766186520770,0.00568,88412.0,88403.0,0.01131183]
[1766186521392,0.00568,88412.0,88402.0,0.01131196]
[1766186522105,0.12079,88412.0,88401.0,0.00568]
[1766186522318,0.12079,88412.0,88401.0,0.01699208]
[1766186522319,0.17915,88412.0,88401.0,0.01699208]
[1766186522530,0.17915,88412.0,88401.0,0.00568]
[1766186523086,0.11511,88411.0,88401.0,0.00568]
[1766186523987,0.00055,88401.0,88397.0,0.00568]
[1766186524394,0.11511,88404.0,88397.0,0.00568]
[1766186527469,0.05284,88410.0,88400.0,0.01131221]
[1766186527666,0.00568,88412.0,88402.0,0.17418]
[1766186529694,0.12252,88411.0,88402.0,0.17418]
[1766186532239,0.12252,88411.0,88398.0,0.01131247]
[1766186532437,0.12252,88411.0,88400.0,0.88576459]
[1766186539318,0.12252,88411.0,88400.0,0.8970768]
[1766186539542,0.12252,88411.0,88401.0,0.01131208]
[1766186539743,0.12252,88411.0,88400.0,0.8970768]
[1766186540224,0.12252,88411.0,88400.0,0.88576459]
[1766186540420,0.12252,88411.0,88400.0,0.8970768]
[1766186540644,0.12252,88411.0,88400.0,0.88576459]
[1766186540837,0.12252,88411.0,88400.0,0.8970768]
[1766186541311,0.12252,88411.0,88400.0,0.88576459]
[1766186541523,0.12252,88411.0,88400.0,0.89708239]
[1766186541724,0.12252,88411.0,88400.0,0.88577018]
[1766186543377,0.12252,88411.0,88400.0,0.01131221]
[1766186544460,0.12252,88411.0,88399.0,0.01131234]
[1766186544662,0.12252,88411.0,88400.0,0.01131221]
[1766186545018,0.12252,88411.0,88401.0,0.01131208]
[1766186545220,0.12252,88411.0,88400.0,0.01131221]
[1766186545417,0.12252,88411.0,88399.0,0.01131234]
[1766186545750,0.12252,88411.0,88398.0,0.01131247]
[1766186545751,0.12252,88411.0,88397.0,0.1911726]
[1766186545947,0.12255,88409.0,88398.0,0.01131247]
[1766186546151,0.12255,88409.0,88397.0,0.1911726]
[1766186546295,0.12255,88409.0,88398.0,0.01131247]
[1766186546719,0.12255,88409.0,88399.0,0.01131234]
[1766186548590,0.12255,88409.0,88400.0,0.01131221]
[1766186549481,0.12255,88409.0,88399.0,0.01131234]
[1766186549946,0.12255,88409.0,88400.0,0.01131221]
[1766186550714,0.12255,88409.0,88399.0,0.01131234]
[1766186551120,0.12255,88409.0,88400.0,0.01131221]
[1766186551624,0.00568,88412.0,88401.0,0.01131208]
[1766186551931,0.00568,88412.0,88402.0,0.01131196]
[1766186552136,0.12823,88412.0,88401.0,0.01131208]
[1766186552448,0.12823,88412.0,88402.0,0.01131196]
[1766186552800,0.12823,88412.0,88403.0,0.01131183]
[1766186553001,0.12823,88412.0,88402.0,0.01131196]
[1766186554663,0.12823,88412.0,88401.0,0.01131208]
[1766186554862,0.12823,88412.0,88402.0,0.01131196]
[1766186555044,0.12823,88412.0,88401.0,0.01131208]
[1766186555243,0.000549,88401.0,88393.0,0.01131311]
[1766186555444,0.122739,88401.0,88392.0,0.01131324]
[1766186555650,0.12219,88401.0,88390.0,0.17657]
[1766186555852,0.12219,88401.0,88392.0,0.00568]
[1766186556349,0.12219,88401.0,88392.0,0.005131]
[1766186556931,0.12787,88401.0,88388.0,0.00568]
[1766186558278,0.12787,88401.0,88388.0,0.01699375]
[1766186559641,0.12787,88401.0,88388.0,0.00568]
[1766186560249,0.12787,88401.0,88388.0,0.01699375]
[1766186560819,0.12787,88401.0,88389.0,0.01131362]
[1766186561432,0.12787,88401.0,88390.0,0.01131349]
[1766186561915,0.12787,88401.0,88391.0,0.01131336]
[1766186562051,0.127321,88401.0,88391.0,0.01131336]
[1766186562524,0.127321,88401.0,88389.0,0.01131362]
[1766186562842,0.127321,88401.0,88388.0,0.01699375]
[1766186563443,0.127321,88401.0,88389.0,0.01131362]
[1766186564483,0.127321,88401.0,88390.0,0.01131349]
[1766186565325,0.127321,88401.0,88391.0,0.01131336]
[1766186565532,0.127321,88401.0,88390.0,0.01131349]
[1766186566368,0.127321,88401.0,88391.0,0.01131336]
[1766186566570,0.127321,88401.0,88390.0,0.01131349]
[1766186567426,0.127321,88401.0,88391.0,0.01131336]
[1766186567626,0.127321,88401.0,88390.0,0.01131349]
[1766186568850,0.127321,88401.0,88391.0,0.01131336]
[1766186569790,0.127321,88401.0,88390.0,0.01131349]
[1766186570490,0.127321,88401.0,88391.0,0.01131336]
[1766186571362,0.127321,88401.0,88389.0,0.01131362]
[1766186571569,0.127321,88401.0,88390.0,0.01131349]
[1766186571908,0.127321,88401.0,88389.0,0.01131362]
[1766186574232,0.127321,88401.0,88390.0,0.01131349]
[1766186576931,0.127321,88401.0,88388.0,0.01699375]
[1766186577132,0.127321,88401.0,88389.0,0.01131362]
[1766186577757,0.127321,88401.0,88390.0,0.01131349]
[1766186578335,0.127321,88401.0,88389.0,0.01131362]
[1766186578590,0.127321,88401.0,88388.0,0.00568]
[1766186578844,0.00568,88401.0,88388.0,0.00568]
[1766186579047,0.12219,88400.0,88388.0,0.00568]
[1766186579177,0.12219,88400.0,88388.0,0.01699375]
[1766186579362,0.12219,88400.0,88388.0,0.00568]
[1766186580210,0.12219,88400.0,88389.0,0.01131362]
[1766186580834,0.12219,88400.0,88388.0,0.01699375]
[1766186581181,0.12219,88400.0,88389.0,0.01131362]
[1766186581822,0.12219,88400.0,88388.0,0.01699375]
[1766186582321,0.12219,88400.0,88388.0,0.00568]
[1766186582485,0.12219,88400.0,88388.0,0.01699375]
[1766186582698,0.12219,88400.0,88389.0,0.01131362]
[1766186582924,0.12219,88400.0,88388.0,0.01699375]
[1766186583121,0.12219,88400.0,88389.0,0.01131362]
[1766186583531,0.12219,88400.0,88388.0,0.01699375]
[1766186584419,0.12219,88400.0,88389.0,0.01131362]
[1766186585414,0.12219,88400.0,88388.0,0.01699375]
[1766186586267,0.12219,88400.0,88389.0,0.01131362]
[1766186586472,0.12219,88400.0,88388.0,0.01699375]
[1766186586675,0.12219,88400.0,88389.0,0.01131362]
[1766186587724,0.12219,88400.0,88388.0,0.01699375]
[1766186588126,0.12219,88400.0,88388.0,0.00568]
[1766186588685,0.12219,88400.0,88388.0,0.01699375]
[1766186589954,0.12219,88400.0,88389.0,0.01131362]
[1766186591281,0.12219,88400.0,88391.0,0.01131336]
[1766186591647,0.00568,88399.0,88392.0,0.01131324]
[1766186592694,0.00568,88399.0,88391.0,0.01131336]
[1766186593138,0.00568,88399.0,88392.0,0.01131324]
[1766186594346,0.12219,88400.0,88393.0,0.01131311]
[1766186594553,0.0135805,88406.0,88399.0,0.00055]
[1766186594754,0.01699336,88405.0,88399.0,0.00055]
[1766186595131,0.01699336,88405.0,88395.0,0.16974]
[1766186597589,0.11985,88404.0,88395.0,0.16974]
[1766186600227,0.11985,88404.0,88392.0,0.01131324]
[1766186600434,0.11985,88404.0,88392.0,0.18796324]
[1766186600797,0.11985,88404.0,88393.0,0.01131311]
[1766186601238,0.11985,88404.0,88392.0,0.18796324]
[1766186601608,0.01131336,88405.0,88394.0,0.29641]
[1766186601815,0.01131336,88405.0,88396.0,0.17665]
[1766186602022,0.00568,88404.0,88396.0,0.17665]
[1766186604492,0.00568,88404.0,88396.0,0.18796272]
[1766186604697,0.00568,88404.0,88396.0,0.17665]
[1766186605267,0.00568,88404.0,88396.0,0.18796272]
[1766186605472,0.00568,88404.0,88396.0,0.17665]
[1766186605675,0.00568,88404.0,88396.0,0.18796272]
[1766186606056,0.00568,88404.0,88397.0,0.0113126]
[1766186606354,0.00568,88404.0,88396.0,0.18796272]
[1766186606673,0.00568,88404.0,88396.0,0.17665]
[1766186607009,0.00568,88404.0,88396.0,0.18796272]
[1766186607211,0.00568,88404.0,88396.0,0.17665]
[1766186607436,0.00568,88404.0,88396.0,0.18796272]
[1766186607577,3.36e-06,88405.0,88404.0,0.00055]
[1766186607789,0.00024643,88416.0,88407.0,0.17665]
[1766186607985,0.00592643,88416.0,88407.0,0.17665]
[1766186609278,0.00592643,88416.0,88381.0,0.40294089]
[1766186609279,0.12506,88408.0,88381.0,0.40294089]
[1766186609499,0.01131298,88394.0,88381.0,0.22193]
[1766186609707,0.12506,88393.0,88384.0,0.03399204]
[1766186610292,0.12506,88393.0,88381.0,0.22761]
[1766186611363,0.12506,88393.0,88381.0,0.23892464]
[1766186612268,0.12506,88393.0,88381.0,0.22761]
[1766186612503,0.12506,88393.0,88381.0,0.23892464]
[1766186613031,0.12506,88393.0,88381.0,0.22761]
[1766186613689,0.12506,88393.0,88382.0,0.01131452]
[1766186614297,0.12506,88393.0,88381.0,0.23892464]
[1766186614601,0.12506,88393.0,88382.0,0.01131452]
[1766186614800,0.12506,88393.0,88381.0,0.23892464]
[1766186616032,0.12506,88393.0,88382.0,0.01131452]
[1766186616984,0.12506,88393.0,88384.0,0.01131426]
[1766186617390,0.11854,88397.0,88393.0,0.00055]
[1766186618046,0.11854,88397.0,88388.0,0.01131375]
[1766186621217,0.11854,88397.0,88389.0,0.01131362]
[1766186621681,0.00568,88398.0,88390.0,0.01131349]
[1766186622724,0.01699375,88398.0,88389.0,0.01131362]
[1766186623361,0.00568,88398.0,88389.0,0.01131362]
[1766186625503,0.00568,88398.0,88390.0,0.01131349]
[1766186625968,0.00568,88400.0,88398.0,0.00055]
[1766186626093,0.00568,88400.0,88393.0,0.01131311]
[1766186626305,0.00568,88400.0,88392.0,0.18491324]
[1766186627565,0.00568,88400.0,88393.0,0.01131311]
[1766186629426,0.00568,88400.0,88392.0,0.18491324]
[1766186629643,0.00568,88400.0,88393.0,0.01131311]
[1766186631217,0.00568,88400.0,88392.0,0.1736]
[1766186631426,0.00568,88400.0,88392.0,0.18491324]
[1766186634022,0.00568,88400.0,88392.0,0.1736]
[1766186634224,0.00568,88400.0,88392.0,0.18491324]
[1766186634529,0.12422,88400.0,88392.0,0.18491324]
[1766186634739,0.12271445,88400.0,88392.0,0.18491324]
[1766186634889,0.00030134,88399.0,88392.0,0.18491324]
[1766186635090,0.00030134,88399.0,88392.0,0.1736]
[1766186635570,0.00030134,88399.0,88392.0,0.18491324]
[1766186636128,0.00030134,88399.0,88394.0,0.18491298]
[1766186636339,0.00030134,88399.0,88395.0,0.01131285]
[1766186636510,0.00568,88407.0,88397.0,0.1736]
[1766186636669,0.00568,88408.0,88397.0,0.1736]
[1766186636873,0.00568,88408.0,88400.0,0.88618823]
[1766186637268,0.00568,88408.0,88400.0,0.89750044]
[1766186637803,0.00568,88408.0,88401.0,0.01131208]
[1766186638154,0.00568,88408.0,88399.0,0.01131234]
[1766186638356,0.00568,88408.0,88401.0,0.01131208]
[1766186638629,0.00568,88408.0,88400.0,0.01131221]
[1766186638776,0.00024643,88416.0,88409.0,0.1736]
[1766186640101,0.11854,88415.0,88407.0,0.00568]
[1766186641092,0.00024643,88416.0,88407.0,0.00568]
[1766186644020,0.00024643,88416.0,88408.0,0.1736]
[1766186647148,0.01131183,88421.0,88416.0,0.000246]
[1766186647355,0.01131183,88421.0,88415.0,0.17901]
[1766186647690,0.00568,88426.0,88417.0,0.01131004]
[1766186647897,0.12337,88428.0,88419.0,0.19031978]
[1766186648105,0.00568,88431.0,88419.0,0.19031978]
[1766186648332,0.00568,88431.0,88419.0,0.17901]
[1766186648530,0.12905,88431.0,88420.0,0.88618823]
[1766186652766,0.0002464,88424.0,88420.0,0.88618823]
[1766186652920,0.0002464,88424.0,88419.0,0.17901]
[1766186655220,0.0002464,88424.0,88419.0,0.19031978]
[1766186655422,4e-07,88424.0,88421.0,0.01130953]
[1766186655884,4e-07,88424.0,88420.0,0.01130965]
[1766186656085,4e-07,88424.0,88421.0,0.01130953]
[1766186657277,4e-07,88424.0,88420.0,0.01130965]
[1766186657781,4e-07,88424.0,88421.0,0.01130953]
[1766186657979,4e-07,88424.0,88420.0,0.01130965]
[1766186658138,4e-07,88424.0,88419.0,0.19031978]
[1766186658592,0.12357,88445.0,88436.0,0.01130761]
[1766186658757,0.12357,88445.0,88442.0,0.0135805]
[1766186658966,0.0002,88445.0,88442.0,0.0133355]
[1766186659145,0.0002,88447.0,88443.0,0.06784026]
[1766186659347,0.0002,88453.0,88445.0,0.05653188]
[1766186659572,0.0002,88453.0,88444.0,0.18612658]
[1766186659573,0.12056,88452.0,88444.0,0.01130658]
[1766186659793,0.00067745,88446.0,88444.0,0.01130658]
[1766186659970,0.12056,88452.0,88443.0,0.01130671]
[1766186660172,0.12056,88452.0,88444.0,0.01130658]
[1766186660377,0.0002,88444.0,88442.0,0.01130684]
[1766186660610,0.0002,88444.0,88440.0,0.00568]
[1766186660983,0.12056,88445.0,88440.0,0.00568]
[1766186662513,0.12056,88445.0,88440.0,0.005131]
[1766186665370,0.12085762,88445.0,88440.0,0.005131]
[1766186665576,0.12056,88445.0,88440.0,0.005131]
[1766186666415,0.12056,88452.0,88440.0,0.005131]
[1766186667087,0.13754556,88452.0,88440.0,0.005131]
[1766186668677,0.12624,88452.0,88440.0,0.005131]
[1766186669351,0.13754556,88452.0,88440.0,0.005131]
[1766186669561,0.12624,88452.0,88440.0,0.005131]